fUSD/lending_fUSD_20240329
["ID","MTS","AMOUNT","RATE_DAILY","PERIOD"]
[321009646,1711743096052,-500.0,0.00053698,120]
[321009647,1711743096062,-409.91,0.00053698,120]
[321009648,1711743096072,-500.0,0.00053698,120]
[321009649,1711743096082,-500.0,0.00053698,120]
[321009650,1711743096093,-500.0,0.00053698,120]
[321009651,1711743096102,-500.0,0.00053698,120]
[321009652,1711743096112,-500.0,0.00053698,120]
[321009653,1711743096123,-500.0,0.00053698,120]
[321009654,1711743096133,-533.32,0.00053698,120]
[321009655,1711743096143,-500.0,0.00053698,30]
[321009656,1711743096153,-500.0,0.00053698,120]
[321009657,1711743096163,-500.0,0.00053698,120]
[321009658,1711743096173,-893.03,0.00053698,120]
[321009659,1711743096183,-500.0,0.00053698,120]
[321009660,1711743096193,-358.54,0.00053698,120]
[321009661,1711743096203,-500.0,0.00053698,120]
[321009662,1711743096215,-318.60953987,0.00053698,120]
[321009663,1711743096225,-500.0,0.00053698,120]
[321009664,1711743096235,-458.46,0.00053698,120]
[321009665,1711743096245,-500.0,0.00053698,120]
[321009666,1711743096255,-231.61,0.00053698,120]
[321009667,1711743096265,-500.0,0.00053698,120]
[321009668,1711743096275,-532.21,0.00053698,120]
[321009669,1711743096286,-721.19,0.00053698,120]
[321009670,1711743096296,-500.0,0.00053698,120]
[321009671,1711743096306,-500.0,0.00053698,120]
[321009672,1711743096315,-500.0,0.00053698,120]
[321009673,1711743096325,-175.14,0.00053698,120]
[321009674,1711743096335,-595.70149333,0.00053698,120]
[321009675,1711743096344,-585.96,0.00053698,120]
[321009676,1711743096354,-500.0,0.00053698,120]
[321009677,1711743096364,-176.39,0.00053698,120]
[321009678,1711743096375,-500.0,0.00053698,120]
[321009679,1711743096386,-500.0,0.00053698,120]
[321009680,1711743096396,-500.0,0.00053698,120]
[321009681,1711743096406,-500.0,0.00053698,120]
[321009682,1711743096416,-500.0,0.00053698,120]
[321009683,1711743096427,-548.85,0.00053698,120]
[321009684,1711743096437,-500.0,0.00053698,120]
[321009685,1711743096447,-500.0,0.00053698,120]
[321009686,1711743096458,-500.0,0.00053698,120]
[321009687,1711743096468,-505.02,0.00053698,120]
[321009688,1711743096478,-500.0,0.00053698,120]
[321009689,1711743096488,-500.0,0.00053698,120]
[321009690,1711743096498,-500.0,0.00053698,120]
[321009691,1711743096509,-500.0,0.00053698,120]
[321009692,1711743096519,-536.31,0.00053698,120]
[321009693,1711743096529,-657.03,0.00053698,120]
[321009694,1711743096540,-402.36,0.00053698,120]
[321009695,1711743096550,-500.0,0.00053698,120]
[321009696,1711743096561,-576.82146032,0.00053698,120]
[321009697,1711743096571,-500.0,0.00053698,120]
[321009698,1711743096581,-500.0,0.00053698,120]
[321009699,1711743096591,-619.71,0.00053698,120]
[321009700,1711743096601,-500.0,0.00053698,2]
[321009701,1711743096611,-500.0,0.00053698,120]
[321009702,1711743096621,-500.0,0.00053698,120]
[321009703,1711743096632,-202.66,0.00053698,120]
[321009704,1711743096643,-648.49280962,0.00053698,120]
[321009705,1711743096652,-500.0,0.00053698,120]
[321009706,1711743096662,-500.0,0.00053698,120]
[321009707,1711743096672,-500.0,0.00053698,120]
[321009708,1711743096681,-500.0,0.00053698,120]
[321009709,1711743096690,-500.0,0.00053698,120]
[321009710,1711743096700,-500.0,0.00053698,120]
[321009711,1711743096710,-500.0,0.00053698,120]
[321009712,1711743096719,-500.0,0.00053698,120]
[321009713,1711743096729,-500.0,0.00053698,120]
[321009714,1711743096739,-500.0,0.00053698,120]
[321009715,1711743096748,-500.0,0.00053698,120]
[321009716,1711743096758,-533.32441505,0.00053698,120]
[321009717,1711743096767,-500.0,0.00053698,120]
[321009718,1711743096777,-500.0,0.00053698,120]
[321009719,1711743096786,-875.16,0.00053698,120]
[321009720,1711743096795,-500.0,0.00053698,120]
[321009721,1711743096805,-500.0,0.00053698,120]
[321009722,1711743096817,-500.0,0.00053698,120]
[321009723,1711743096826,-500.0,0.00053698,120]
[321009724,1711743096835,-514.32,0.00053698,120]
[321009725,1711743096845,-500.0,0.00053698,120]
[321009726,1711743096854,-500.0,0.00053698,120]
[321009727,1711743096863,-500.0,0.00053698,120]
[321009728,1711743096872,-500.0,0.00053698,120]
[321009729,1711743096881,-591.94,0.00053698,120]
[321009730,1711743096891,-500.0,0.00053698,120]
[321009731,1711743096900,-221.45,0.00053698,120]
[321009732,1711743096909,-500.0,0.00053698,120]
[321009733,1711743096918,-500.0,0.00053698,120]
[321009734,1711743096927,-500.0,0.00053698,120]
[321009735,1711743096937,-500.0,0.00053698,120]
[321009736,1711743096948,-585.45,0.00053698,2]
[321009737,1711743096957,-500.0,0.00053698,120]
[321009738,1711743096966,-2237.67,0.00053698,120]
[321009739,1711743096975,-537.82455013,0.00053698,120]
[321009740,1711743096985,-583.33,0.00053698,120]
[321009741,1711743096994,-4471.83,0.00053698,120]
[321009742,1711743097002,-500.0,0.00053698,120]
[321009743,1711743097012,-1416.86,0.00053698,120]
[321009744,1711743097020,-372.61,0.00053698,120]
[321009745,1711743097031,-500.0,0.00053698,120]
[321009746,1711743097039,-349.64,0.00053698,120]
[321009747,1711743097049,-557.16,0.00053698,120]
[321009748,1711743097059,-500.0,0.00053698,120]
[321009749,1711743097068,-762.04,0.00053698,120]
[321009750,1711743097077,-500.0,0.00053698,120]
[321009751,1711743097087,-2221.11,0.00053698,120]
[321009752,1711743097096,-3766.78,0.00053698,120]
[321009753,1711743097105,-511.43,0.00053698,120]
[321009754,1711743097115,-2235.61,0.00053698,120]
[321009755,1711743097124,-780.71,0.00053698,120]
[321009756,1711743097133,-1178.74,0.00053698,120]
[321009757,1711743097143,-556.61,0.00053698,120]
[321009758,1711743097152,-500.0,0.00053698,120]
[321009759,1711743097161,-500.0,0.00053698,120]
[321009760,1711743097171,-500.0,0.00053698,120]
[321009761,1711743097180,-619.5,0.00053698,120]
[321009762,1711743097189,-629.04,0.00053698,120]
[321009763,1711743097198,-500.0,0.00053698,120]
[321009764,1711743097209,-2852.03,0.00053698,120]
[321009765,1711743097218,-3138.6,0.00053698,120]
[321009766,1711743097228,-8058.65,0.00053698,120]
[321009767,1711743097237,-500.0,0.00053698,120]
[321009768,1711743097247,-646.56,0.00053698,120]
[321009769,1711743097256,-630.23,0.00053698,120]
[321009770,1711743097266,-2086.46,0.00053698,120]
[321009771,1711743097275,-756.48,0.00053698,120]
[321009772,1711743097286,-293.68,0.00053698,120]
[321009773,1711743097295,-500.0,0.00053698,120]
[321009774,1711743097304,-1381.85,0.00053698,120]
[321009775,1711743097314,-1786.25,0.00053698,120]
[321009776,1711743097323,-1037.49,0.00053698,120]
[321009777,1711743097332,-5491.84,0.00053698,120]
[321009778,1711743097342,-168.97,0.00053698,120]
[321009779,1711743097350,-500.0,0.00053698,120]
[321009780,1711743097361,-4044.9,0.00053698,120]
[321009781,1711743097371,-500.0,0.00053698,120]
[321009782,1711743097503,-963.3,0.00053698,120]
[321009783,1711743097513,-500.0,0.00053698,120]
[321009784,1711743097522,-2228.41,0.00053698,120]
[321009785,1711743097532,-1266.86,0.00053698,120]
[321009786,1711743097542,-2742.97,0.00053698,120]
[321009787,1711743097551,-1695.14,0.00053698,120]
[321009788,1711743097561,-1156.36,0.00053698,120]
[321009789,1711743097571,-559.88,0.00053698,120]
[321009790,1711743097581,-3243.98,0.00053698,120]
[321009791,1711743097590,-500.0,0.00053698,120]
[321009792,1711743097600,-500.0,0.00053698,120]
[321009793,1711743097610,-3781.4,0.00053698,120]
[321009794,1711743097619,-1170.04,0.00053698,120]
[321009795,1711743097629,-996.14,0.00053698,120]
[321009796,1711743097638,-659.08,0.00053698,120]
[321009797,1711743097647,-500.0,0.00053698,120]
[321009798,1711743097659,-500.0,0.00053698,120]
[321009799,1711743097668,-500.0,0.00053698,7]
[321009800,1711743097677,-4977.0,0.00053698,120]
[321009801,1711743097686,-500.0,0.00053698,120]
[321009802,1711743097694,-500.0,0.00053698,120]
[321009803,1711743097703,-500.0,0.00053698,120]
[321009804,1711743097714,-3890.35,0.00053698,120]
[321009805,1711743097724,-500.0,0.00053698,120]
[321009806,1711743097733,-784.3,0.00053698,120]
[321009807,1711743097742,-657.95,0.00053698,120]
[321009808,1711743097751,-500.0,0.00053698,120]
[321009809,1711743097760,-500.0,0.00053698,120]
[321009810,1711743097769,-3045.62,0.00053698,120]
[321009811,1711743097789,-500.0,0.00053698,120]
[321009812,1711743097798,-500.0,0.00053698,120]
[321009813,1711743097807,-440.54,0.00053698,120]
[321009814,1711743097816,-500.0,0.00053698,120]
[321009815,1711743097825,-500.0,0.00053698,120]
[321009816,1711743097835,-762.49,0.00053698,120]
[321009817,1711743097845,-713.8,0.00053698,120]
[321009818,1711743097854,-876.73,0.00053698,120]
[321009819,1711743097863,-500.0,0.00053698,120]
[321009820,1711743097872,-500.0,0.00053698,120]
[321009821,1711743097881,-3322.87,0.00053698,120]
[321009822,1711743097890,-975.43,0.00053698,120]
[321009823,1711743097899,-500.0,0.00053698,120]
[321009824,1711743097907,-550.51888371,0.00053698,120]
[321009825,1711743097916,-1010.8,0.00053698,120]
[321009826,1711743097926,-362.43821221,0.00053698,120]
[321009827,1711743097935,-1101.95,0.00053698,120]
[321009828,1711743097947,-641.9,0.00053698,120]
[321009829,1711743097956,-500.0,0.00053698,120]
[321009830,1711743097966,-500.0,0.00053698,120]
[321009831,1711743097975,-5674.68,0.00053698,120]
[321009832,1711743097986,-500.0,0.00053698,120]
[321009833,1711743097995,-500.0,0.00053698,120]
[321009834,1711743098005,-500.0,0.00053698,120]
[321009835,1711743098016,-500.0,0.00053698,120]
[321009836,1711743098025,-1101.21,0.00053698,120]
[321009837,1711743098035,-1619.59,0.00053698,120]
[321009838,1711743098044,-500.0,0.00053698,120]
[321009839,1711743098054,-958.84,0.00053698,120]
[321009840,1711743098063,-500.0,0.00053698,120]
[321009841,1711743098073,-608.38,0.00053698,120]
[321009842,1711743098082,-1270.9,0.00053698,120]
[321009843,1711743098092,-500.0,0.00053698,120]
[321009844,1711743098101,-1001.79,0.00053698,120]
[321009845,1711743098111,-704.57,0.00053698,120]
[321009846,1711743098120,-1109.94,0.00053698,120]
[321009847,1711743098130,-500.0,0.00053698,120]
[321009848,1711743098139,-500.0,0.00053698,120]
[321009849,1711743098148,-966.68,0.00053698,120]
[321009850,1711743098157,-500.0,0.00053698,120]
[321009851,1711743098166,-500.0,0.00053698,120]
[321009852,1711743098176,-763.79,0.00053698,120]
[321009853,1711743098186,-896.89,0.00053698,120]
[321009854,1711743098195,-863.63,0.00053698,120]
[321009855,1711743098204,-500.0,0.00053698,120]
[321009856,1711743098214,-1827.42,0.00053698,120]
[321009857,1711743098224,-1672.3,0.00053698,120]
[321009858,1711743098233,-500.0,0.00053698,120]
[321009859,1711743098243,-500.0,0.00053698,120]
[321009860,1711743098252,-3729.29,0.00053698,120]
[321009861,1711743098261,-3188.94,0.00053698,120]
[321009862,1711743098271,-500.0,0.00053698,120]
[321009863,1711743098280,-1494.43,0.00053698,120]
[321009864,1711743098290,-740.79,0.00053698,120]
[321009865,1711743098299,-500.0,0.00053698,120]
[321009866,1711743098309,-2612.0,0.00053698,120]
[321009867,1711743098318,-7249.51,0.00053698,120]
[321009868,1711743098328,-500.0,0.00053698,120]
[321009869,1711743098338,-543.92637912,0.00053698,120]
[321009870,1711743098347,-843.2,0.00053698,120]
[321009871,1711743098357,-2680.51,0.00053698,120]
[321009872,1711743098367,-500.0,0.00053698,120]
[321009873,1711743098376,-4459.43,0.00053698,120]
[321009874,1711743098385,-516.18621423,0.00053698,120]
[321009875,1711743098395,-1947.08,0.00053698,120]
[321009876,1711743098404,-3624.86,0.00053698,120]
[321009877,1711743098414,-2027.87,0.00053698,120]
[321009878,1711743098423,-1617.65,0.00053698,120]
[321009879,1711743098433,-500.0,0.00053698,120]
[321009880,1711743098443,-1765.5,0.00053698,120]
[321009881,1711743098452,-1764.1,0.00053698,120]
[321009882,1711743098463,-500.0,0.00053698,120]
[321009883,1711743098473,-500.0,0.00053698,120]
[321009884,1711743098482,-957.9,0.00053698,120]
[321009885,1711743098492,-10351.89,0.00053698,120]
[321009886,1711743098502,-13296.96,0.00053698,120]
[321009887,1711743098511,-517.98,0.00053698,120]
[321009888,1711743098521,-1873.21,0.00053698,120]
[321009889,1711743098530,-504.78,0.00053698,120]
[321009890,1711743098541,-2418.2,0.00053698,120]
[321009891,1711743098551,-2461.01,0.00053698,120]
[321009892,1711743098561,-2944.8,0.00053698,120]
[321009893,1711743098570,-270.32181935,0.00053698,120]
[321009894,1711743098580,-1607.86,0.00053698,120]
[321009895,1711743098590,-500.0,0.00053698,120]
[321009896,1711743098599,-500.0,0.00053698,120]
[321009897,1711743098609,-500.0,0.00053698,120]
[321009898,1711743098618,-3103.51,0.00053698,120]
[321009899,1711743098628,-500.0,0.00053698,80]
[321009900,1711743098638,-500.0,0.00053698,120]
[321009901,1711743098648,-2940.12,0.00053698,120]
[321009902,1711743098658,-500.0,0.00053698,120]
[321009903,1711743098667,-4477.27,0.00053698,120]
[321009904,1711743098677,-500.0,0.00053698,120]
[321009905,1711743098687,-500.0,0.00053698,120]
[321009906,1711743098696,-1003.91,0.00053698,120]
[321009907,1711743098705,-782.17,0.00053698,120]
[321009908,1711743098716,-910.45,0.00053698,120]
[321009909,1711743098725,-2328.02,0.00053698,120]
[321009910,1711743098735,-500.0,0.00053698,120]
[321009911,1711743098745,-500.0,0.00053698,120]
[321009912,1711743098759,-608.2,0.00053698,120]
[321009913,1711743098770,-1584.87,0.00053698,120]
[321009914,1711743098780,-232.77352028,0.00053698,120]
[321009915,1711743098789,-594.05,0.00053698,120]
[321009916,1711743098799,-995.82,0.00053698,120]
[321009917,1711743098809,-611.38,0.00053698,120]
[321009918,1711743098818,-500.0,0.00053698,120]
[321009919,1711743098828,-571.66,0.00053698,120]
[321009920,1711743098838,-1818.27,0.00053698,120]
[321009921,1711743098848,-4183.91,0.00053698,120]
[321009922,1711743098857,-500.0,0.00053698,120]
[321009923,1711743098867,-4365.84,0.00053698,21]
[321009924,1711743098877,-500.0,0.00053698,120]
[321009925,1711743098886,-500.0,0.00053698,120]
[321009926,1711743098896,-500.0,0.00053698,120]
[321009927,1711743098905,-1348.38,0.00053698,120]
[321009928,1711743098915,-854.64,0.00053698,120]
[321009929,1711743098925,-1373.05,0.00053698,120]
[321009930,1711743098935,-1920.43,0.00053698,120]
[321009931,1711743098947,-548.39,0.00053698,120]
[321009932,1711743098956,-4841.11,0.00053698,120]
[321009933,1711743098967,-500.0,0.00053698,120]
[321009934,1711743098976,-183.36563649,0.00053698,120]
[321009935,1711743098987,-1532.21,0.00053698,120]
[321009936,1711743098996,-3978.71,0.00053698,120]
[321009937,1711743099006,-4048.81,0.00053698,120]
[321009938,1711743099015,-500.0,0.00053698,120]
[321009939,1711743099025,-500.0,0.00053698,60]
[321009940,1711743099035,-500.0,0.00053698,120]
[321009941,1711743099044,-623.73,0.00053698,120]
[321009942,1711743099054,-10194.33,0.00053698,120]
[321009943,1711743099064,-817.33,0.00053698,120]
[321009944,1711743099074,-500.0,0.00053698,120]
[321009945,1711743099083,-3430.93,0.00053698,120]
[321009946,1711743099092,-500.0,0.00053698,120]
[321009947,1711743099102,-500.0,0.00053698,2]
[321009948,1711743099111,-1097.14,0.00053698,120]
[321009949,1711743099120,-500.0,0.00053698,120]
[321009950,1711743099129,-150.0,0.000537,11]
[321009951,1711743099138,-1000.0,0.00053747,120]
[321009952,1711743099148,-386.92448372,0.0005375,30]
[321009953,1711743099157,-310.13458776,0.000538,120]
[321009954,1711743099166,-209.277,0.00053803,30]
[321009955,1711743099175,-624.607561,0.00053803,30]
[321009956,1711743099184,-230.2047,0.00053803,30]
[321009957,1711743099194,-174.3975,0.00053803,30]
[321009958,1711743099203,-174.3975,0.00053803,30]
[321009959,1711743099214,-174.3975,0.00053803,30]
[321009960,1711743099223,-174.3975,0.00053803,30]
[321009961,1711743099233,-174.3975,0.00053803,30]
[321009962,1711743099243,-156.151891,0.00053803,30]
[321009963,1711743099253,-192.347555,0.00053803,30]
[321009964,1711743099262,-1000.0,0.00053828,120]
[321009965,1711743099272,-515.0,0.00053836,120]
[321009966,1711743099282,-530.0,0.00053836,120]
[321009967,1711743099291,-160.36143912,0.00053865,60]
[321009968,1711743099300,-159.01068689,0.00053872,98]
[321009969,1711743099310,-1000.0,0.00053908,120]
[321009970,1711743099319,-156.08408612,0.00053964,60]
[321009971,1711743099329,-156.39,0.00053965,120]
[321009972,1711743099339,-500.0,0.00053972,120]
[321009973,1711743099348,-500.0,0.00053972,120]
[321009974,1711743099358,-604.28,0.00053972,120]
[321009975,1711743099368,-500.0,0.00053972,120]
[321009976,1711743099388,-500.0,0.00053972,120]
[321009977,1711743099409,-500.0,0.00053972,120]
[321009978,1711743099432,-172.22,0.00053972,120]
[321009979,1711743099454,-500.0,0.00053972,120]
[321009980,1711743099477,-500.0,0.00053972,120]
[321009981,1711743099499,-445.17,0.00053972,120]
[321009982,1711743099521,-500.0,0.00053972,120]
[321009983,1711743099534,-524.16520681,0.00053972,120]
[321009984,1711743099544,-500.0,0.00053972,120]
[321009985,1711743099554,-500.0,0.00053972,120]
[321009986,1711743099564,-500.0,0.00053972,120]
[321009987,1711743099574,-500.0,0.00053972,120]
[321009988,1711743099584,-606.96,0.00053972,120]
[321009989,1711743099593,-500.0,0.00053972,120]
[321009990,1711743099603,-500.0,0.00053972,120]
[321009991,1711743099613,-538.85573096,0.00053972,120]
[321009992,1711743099623,-500.0,0.00053972,120]
[321009993,1711743099632,-500.0,0.00053972,120]
[321009994,1711743099642,-500.0,0.00053972,120]
[321009995,1711743099651,-500.0,0.00053972,120]
[321009996,1711743099661,-500.0,0.00053972,120]
[321009997,1711743099671,-500.0,0.00053972,120]
[321009998,1711743099680,-404.21,0.00053972,120]
[321009999,1711743099691,-500.0,0.00053972,120]
[321010000,1711743099700,-500.0,0.00053972,120]
[321010001,1711743099711,-500.0,0.00053972,120]
[321010002,1711743099720,-500.0,0.00053972,120]
[321010003,1711743099730,-500.0,0.00053972,120]
[321010004,1711743099739,-500.0,0.00053972,120]
[321010005,1711743099749,-500.0,0.00053972,120]
[321010006,1711743099758,-500.0,0.00053972,120]
[321010007,1711743099768,-500.0,0.00053972,120]
[321010008,1711743099778,-500.0,0.00053972,120]
[321010009,1711743099787,-631.54,0.00053972,120]
[321010010,1711743099797,-500.0,0.00053972,120]
[321010011,1711743099806,-500.0,0.00053972,120]
[321010012,1711743099816,-541.57,0.00053972,120]
[321010013,1711743099826,-500.0,0.00053972,120]
[321010014,1711743099835,-500.0,0.00053972,120]
[321010015,1711743099845,-500.0,0.00053972,120]
[321010016,1711743099856,-500.0,0.00053972,120]
[321010017,1711743099866,-500.0,0.00053972,120]
[321010018,1711743099875,-500.0,0.00053972,120]
[321010019,1711743099885,-500.0,0.00053972,120]
[321010020,1711743099894,-500.0,0.00053972,120]
[321010021,1711743099904,-500.0,0.00053972,120]
[321010022,1711743099915,-318.86,0.00053972,120]
[321010023,1711743099924,-616.8,0.00053972,120]
[321010024,1711743099934,-500.0,0.00053972,120]
[321010025,1711743099946,-559.31,0.00053972,120]
[321010026,1711743099955,-500.0,0.00053972,120]
[321010027,1711743099967,-500.0,0.00053972,120]
[321010028,1711743099977,-500.0,0.00053972,120]
[321010029,1711743099987,-500.0,0.00053972,120]
[321010030,1711743099997,-500.0,0.00053972,120]
[321010031,1711743100006,-500.0,0.00053972,120]
[321010032,1711743100016,-500.0,0.00053972,120]
[321010033,1711743100027,-500.0,0.00053972,120]
[321010034,1711743100037,-500.0,0.00053972,120]
[321010035,1711743100047,-158.87369788,0.00053972,120]
[321010036,1711743100056,-500.0,0.00053972,120]
[321010037,1711743100065,-500.0,0.00053972,120]
[321010038,1711743100075,-488.14,0.00053972,120]
[321010039,1711743100084,-500.0,0.00053972,120]
[321010040,1711743100094,-500.0,0.00053972,120]
[321010041,1711743100103,-500.0,0.00053972,120]
[321010042,1711743100113,-500.0,0.00053972,120]
[321010043,1711743100122,-500.0,0.00053972,120]
[321010044,1711743100131,-500.0,0.00053972,120]
[321010045,1711743100140,-500.0,0.00053972,120]
[321010046,1711743100150,-627.1,0.00053972,120]
[321010047,1711743100159,-500.0,0.00053972,120]
[321010048,1711743100168,-500.0,0.00053972,120]
[321010049,1711743100178,-500.0,0.00053972,120]
[321010050,1711743100187,-296.23738871,0.00053972,120]
[321010051,1711743100196,-500.0,0.00053972,120]
[321010052,1711743100206,-500.0,0.00053972,120]
[321010053,1711743100216,-500.0,0.00053972,120]
[321010054,1711743100226,-500.0,0.00053972,120]
[321010055,1711743100235,-500.0,0.00053972,120]
[321010056,1711743100245,-500.0,0.00053972,120]
[321010057,1711743100254,-500.0,0.00053972,120]
[321010058,1711743100264,-500.0,0.00053972,120]
[321010059,1711743100275,-500.0,0.00053972,120]
[321010060,1711743100285,-277.31968058,0.00053972,35]
[321010061,1711743100868,-1399.4729808,0.0005199,2]
[321010062,1711743100880,-611.69230575,0.0005199,2]
[321010063,1711743100942,-1.9055726,0.00037381,2]
[321010064,1711743101478,-1235.18754,0.00037381,2]
[321010065,1711743101488,-622.4,0.000475,120]
[321010066,1711743101497,-4060.18240183,0.0005199,2]
[321010067,1711743101509,-9374.0,0.0005199,2]
[321010068,1711743101591,-55658.18896385,0.0005199,2]
[321010069,1711743101625,-3844.6569,0.0005199,2]
[321010070,1711743102386,-1195.54601361,0.00046141,2]
[321010071,1711743611221,222.16925775,0.00024,2]
[321010073,1711743776179,406.48055709,0.0002328,2]
[321010074,1711743779237,1464.4092569,0.00024,2]
[321010075,1711743781964,295.41221015,0.00024,2]
[321010076,1711743785817,16756.80763052,0.00024,2]
[321010077,1711743789919,359.48685988,0.00024,2]
[321010078,1711743791604,363.92294364,0.00024,2]
[321010079,1711743792456,1903.83659298,0.00024,2]
[321010080,1711743831546,-163.79841994,0.000299,2]
[321010081,1711743831567,-1036.20158006,0.00029998,2]
[321010083,1711744043094,-777.54370737,0.00026394,2]
[321010084,1711744043118,-216.9117649,0.00026395,2]
[321010085,1711744043136,-245.41559273,0.00026398,2]
[321010086,1711744043154,-406.35103241,0.00029098,2]
[321010087,1711744043173,-179.32336699,0.00029798,2]
[321010088,1711744043193,-534.84684711,0.00029898,2]
[321010089,1711744043214,-486.51857006,0.00029999,2]
[321010090,1711744043233,-404.63222355,0.0003,4]
[321010091,1711744043253,-155.0,0.0003,4]
[321010092,1711744043272,-163.79841989,0.00033576,2]
[321010093,1711744043294,-150.99,0.00036788,2]
[321010094,1711744043313,-150.0,0.00036788,3]
[321010095,1711744043332,-1672.91760291,0.00036789,4]
[321010096,1711744156090,-173.13469032,0.0003,4]
[321010097,1711744156113,-11817.30258048,0.00036789,4]
[321010107,1711744232370,-5772.43625401,0.00036789,4]
[321010108,1711744232381,-1000.0,0.00037288,2]
[321010109,1711744232391,-361.92504692,0.00037289,4]
[321010110,1711744232400,-192.35052739,0.00040926,2]
[321010111,1711744232410,-250.0,0.00043016,2]
[321010112,1711744232420,-200.0,0.00043016,2]
[321010113,1711744232430,-517.86,0.00043041,2]
[321010114,1711744232439,-154.08,0.0004331,2]
[321010115,1711744232450,-154.08,0.00043761,2]
[321010116,1711744232460,-584.47351616,0.000442,4]
[321010117,1711744232469,-309.86,0.000442,2]
[321010118,1711744232479,-483.62,0.00044201,2]
[321010119,1711744232489,-154.08,0.00044212,2]
[321010120,1711744232499,-500.0,0.00044569,2]
[321010121,1711744232512,-154.08,0.00044664,2]
[321010122,1711744232521,-150.09,0.00044664,2]
[321010123,1711744232531,-274.05,0.000448,2]
[321010124,1711744232541,-181.09,0.00044821,120]
[321010125,1711744232550,-2318.64,0.00044846,120]
[321010126,1711744232560,-653.03,0.00044905,2]
[321010127,1711744232569,-154.08,0.00045115,2]
[321010128,1711744232579,-1180.5016,0.0004514,30]
[321010129,1711744232589,-250.0,0.00045185,112]
[321010130,1711744232599,-517.86,0.00045305,2]
[321010131,1711744232609,-190.21,0.00045326,2]
[321010132,1711744232619,-290.26738415,0.00045391,4]
[321010133,1711744232629,-154.08,0.00045566,2]
[321010134,1711744232638,-3263.21202746,0.00046141,5]
[321010135,1711744232648,-150.02,0.00046298,2]
[321010136,1711744232658,-156.87,0.00046304,15]
[321010138,1711744232668,-250.0,0.00046364,120]
[321010141,1711744232677,-7023.22201407,0.00046413,2]
[321010157,1711744232820,-12254.61769704,0.00046413,2]
[321010159,1711744232830,-190.78,0.00046431,2]
[321010161,1711744232839,-62.01797435,0.00046464,2]
[321010167,1711744238601,-192.35052739,0.0004,2]
[321010168,1711744238611,-17937.98588494,0.00046464,2]
[321010169,1711744238622,-5899.99614071,0.00046464,2]
[321010170,1711744238631,-8523.8,0.00046468,2]
[321010171,1711744238641,-5123.87000371,0.00046513,2]
[321010172,1711744238650,-19277.83971111,0.00046513,2]
[321010173,1711744238659,-161.83868609,0.0004656,2]
[321010174,1711744238668,-291.3053969,0.0004656,4]
[321010175,1711744238677,-563.16772433,0.00046561,4]
[321010176,1711744238687,-4277.56505767,0.00046612,4]
[321010177,1711744238696,-39172.95141497,0.00046612,2]
[321010178,1711744238707,-19277.83971111,0.00046613,2]
[321010180,1711744238717,-1288.78,0.00046645,120]
[321010182,1711744238726,-649.81,0.00046703,2]
[321010184,1711744238735,-155.0,0.00046711,4]